[Event "Titled Tuesday Blitz November 01 Late 2022"]
[White "Pinheiro, Iung Alicio de O."]
[Black "Castella Garcia, Fausto"]
[WhiteFideId "2104350"]
[BlackFideId "3501922"]
[WhiteElo "2283"]
[BlackElo "2246"]
[Result "1-0"]
[Round "04"]
[TimeControl "180+1"]
[Date "2022.11.02"]
[WhiteClock "0:00:20"]
[BlackClock "0:00:06"]

1. c4 {[%clk 0:03:00]}  c5 {[%clk 0:02:59]} 2. g3 {[%clk 0:03:00]}  g6 {[%clk 0:02:59]} 3. Bg2 {[%clk 0:03:00]}  Bg7 {[%clk 0:03:00]} 4. Nc3 {[%clk 0:03:00]}  Nf6 {[%clk 0:02:59]} 5. Nh3 {[%clk 0:02:53]}  O-O {[%clk 0:02:55]} 6. Nf4 {[%clk 0:02:53]}  Nc6 {[%clk 0:02:46]} 7. a3 {[%clk 0:02:52]}  d6 {[%clk 0:02:41]} 8. O-O {[%clk 0:02:51]}  Bf5 {[%clk 0:02:31]} 9. d3 {[%clk 0:02:42]}  Qc8 {[%clk 0:02:07]} 10. Rb1 {[%clk 0:02:34]}  e5 {[%clk 0:02:04]} 11. Nfd5 {[%clk 0:02:34]}  Nxd5 {[%clk 0:02:04]} 12. Nxd5 {[%clk 0:02:33]}  Bh3 {[%clk 0:01:50]} 13. b4 {[%clk 0:02:32]}  Bxg2 {[%clk 0:01:50]} 14. Kxg2 {[%clk 0:02:31]}  Re8 {[%clk 0:01:45]} 15. Bg5 {[%clk 0:02:06]}  cxb4 {[%clk 0:01:34]} 16. axb4 {[%clk 0:02:04]}  Qf5 {[%clk 0:01:31]} 17. Qd2 {[%clk 0:01:53]}  f6 {[%clk 0:01:22]} 18. Be3 {[%clk 0:01:48]}  Qd7 {[%clk 0:01:17]} 19. f3 {[%clk 0:01:47]}  Ne7 {[%clk 0:01:05]} 20. Nxe7+ {[%clk 0:01:33]}  Rxe7 {[%clk 0:01:05]} 21. Ra1 {[%clk 0:01:24]}  a6 {[%clk 0:01:04]} 22. Bf2 {[%clk 0:01:22]}  d5 {[%clk 0:01:04]} 23. cxd5 {[%clk 0:01:11]}  Qxd5 {[%clk 0:01:03]} 24. Ra5 {[%clk 0:01:12]}  Qd7 {[%clk 0:00:56]} 25. b5 {[%clk 0:01:10]}  Re6 {[%clk 0:00:51]} 26. Rfa1 {[%clk 0:01:09]}  f5 {[%clk 0:00:48]} 27. R1a4 {[%clk 0:01:03]}  Qf7 {[%clk 0:00:38]} 28. Qa2 {[%clk 0:01:01]}  g5 {[%clk 0:00:33]} 29. bxa6 {[%clk 0:00:57]}  Rexa6 {[%clk 0:00:32]} 30. Rxa6 {[%clk 0:00:54]}  Rxa6 {[%clk 0:00:29]} 31. Rxa6 {[%clk 0:00:51]}  bxa6 {[%clk 0:00:30]} 32. Qxa6 {[%clk 0:00:52]}  h5 {[%clk 0:00:30]} 33. h3 {[%clk 0:00:48]}  Kh7 {[%clk 0:00:30]} 34. Qc8 {[%clk 0:00:47]}  Qg6 {[%clk 0:00:25]} 35. g4 {[%clk 0:00:45]}  fxg4 {[%clk 0:00:22]} 36. fxg4 {[%clk 0:00:42]}  e4 {[%clk 0:00:16]} 37. gxh5 {[%clk 0:00:29]}  Qxh5 {[%clk 0:00:11]} 38. Qf5+ {[%clk 0:00:29]}  Qg6 {[%clk 0:00:09]} 39. dxe4 {[%clk 0:00:23]}  Kh6 {[%clk 0:00:09]} 40. Be3 {[%clk 0:00:21]}  Bf6 {[%clk 0:00:08]} 41. Qxg6+ {[%clk 0:00:18]}  Kxg6 {[%clk 0:00:08]} 42. Kf3 {[%clk 0:00:19]}  Be5 {[%clk 0:00:07]} 43. Kg4 {[%clk 0:00:19]}  Bf6 {[%clk 0:00:08]} 44. e5 {[%clk 0:00:17]}  Bxe5 {[%clk 0:00:07]} 45. Bxg5 {[%clk 0:00:18]}  Bc7 {[%clk 0:00:06]} 46. h4 {[%clk 0:00:18]}  Be5 {[%clk 0:00:06]} 47. h5+ {[%clk 0:00:19]}  Kf7 {[%clk 0:00:06]} 48. Kf5 {[%clk 0:00:20]}  Bc7 {[%clk 0:00:06]} 49. e4 {[%clk 0:00:20]}  Bg3 {[%clk 0:00:05]} 50. e5 {[%clk 0:00:20]}  Bh2 {[%clk 0:00:06]} 51. e6+ {[%clk 0:00:20]} 1-0


[Site "https://www.chess.com"]

[Event "Titled Tuesday Blitz November 01 Late 2022"]
[White "Plat, Vojtech"]
[Black "Omelja, Artem"]
[WhiteFideId "325740"]
[BlackFideId "14119846"]
[WhiteElo "2814"]
[BlackElo "2562"]
[Result "1-0"]
[Round "04"]
[TimeControl "180+1"]
[Date "2022.11.02"]
[WhiteClock "0:02:04"]
[BlackClock "0:00:57"]

1. e4 {[%clk 0:02:59]}  c5 {[%clk 0:02:59]} 2. Nf3 {[%clk 0:02:57]}  e6 {[%clk 0:02:59]} 3. d4 {[%clk 0:02:54]}  cxd4 {[%clk 0:03:00]} 4. Nxd4 {[%clk 0:02:51]}  a6 {[%clk 0:03:01]} 5. c4 {[%clk 0:02:50]}  Nf6 {[%clk 0:03:00]} 6. Nc3 {[%clk 0:02:50]}  Bb4 {[%clk 0:03:00]} 7. Bd3 {[%clk 0:02:49]}  O-O {[%clk 0:02:43]} 8. O-O {[%clk 0:02:40]}  d6 {[%clk 0:02:42]} 9. Bg5 {[%clk 0:02:37]}  h6 {[%clk 0:02:40]} 10. Bh4 {[%clk 0:02:36]}  e5 {[%clk 0:02:40]} 11. Nde2 {[%clk 0:02:35]}  Be6 {[%clk 0:02:37]} 12. Rc1 {[%clk 0:02:26]}  Nbd7 {[%clk 0:02:37]} 13. Nd5 {[%clk 0:02:23]}  Bxd5 {[%clk 0:02:33]} 14. exd5 {[%clk 0:02:23]}  Qe7 {[%clk 0:02:24]} 15. a3 {[%clk 0:02:22]}  Bc5 {[%clk 0:02:21]} 16. b4 {[%clk 0:02:21]}  Ba7 {[%clk 0:02:16]} 17. Ng3 {[%clk 0:02:19]}  Rfc8 {[%clk 0:02:05]} 18. Nf5 {[%clk 0:02:18]}  Qf8 {[%clk 0:02:05]} 19. Qf3 {[%clk 0:02:17]}  Re8 {[%clk 0:01:46]} 20. Rfe1 {[%clk 0:02:10]}  e4 {[%clk 0:01:10]} 21. Bxe4 {[%clk 0:02:09]}  Ne5 {[%clk 0:01:11]} 22. Nxh6+ {[%clk 0:02:08]}  Kh8 {[%clk 0:01:06]} 23. Qxf6 {[%clk 0:02:07]}  gxf6 {[%clk 0:00:57]} 24. Bxf6+ {[%clk 0:02:06]}  Qg7 {[%clk 0:00:58]} 25. Bxg7+ {[%clk 0:02:07]}  Kxg7 {[%clk 0:00:59]} 26. Nf5+ {[%clk 0:02:07]}  Kf6 {[%clk 0:01:00]} 27. Nxd6 {[%clk 0:02:07]}  Rg8 {[%clk 0:01:00]} 28. c5 {[%clk 0:02:06]}  Rg4 {[%clk 0:00:58]} 29. h3 {[%clk 0:02:04]}  Rg5 {[%clk 0:00:57]} 30. f4 {[%clk 0:02:04]} 1-0


[Site "https://www.chess.com"]

[Event "Titled Tuesday Blitz November 01 Late 2022"]
[White "Postny, Evgeny"]
[Black "Manukian, Artak"]
[WhiteFideId "2804344"]
[BlackFideId "13301373"]
[WhiteElo "2473"]
[BlackElo "2504"]
[Result "0-1"]
[Round "04"]
[TimeControl "180+1"]
[Date "2022.11.02"]
[WhiteClock "0:00:14"]
[BlackClock "0:00:50"]

1. e4 {[%clk 0:03:00]}  c6 {[%clk 0:02:59]} 2. d4 {[%clk 0:03:00]}  d5 {[%clk 0:03:00]} 3. f3 {[%clk 0:03:00]}  e6 {[%clk 0:03:00]} 4. Nc3 {[%clk 0:02:59]}  Nf6 {[%clk 0:03:00]} 5. Bf4 {[%clk 0:02:57]}  Bb4 {[%clk 0:02:59]} 6. Qd3 {[%clk 0:02:58]}  Qa5 {[%clk 0:02:58]} 7. Ne2 {[%clk 0:02:55]}  b5 {[%clk 0:02:54]} 8. a3 {[%clk 0:02:54]}  O-O {[%clk 0:02:49]} 9. O-O-O {[%clk 0:02:48]}  Be7 {[%clk 0:02:43]} 10. h4 {[%clk 0:02:43]}  b4 {[%clk 0:02:40]} 11. axb4 {[%clk 0:02:43]}  Bxb4 {[%clk 0:02:39]} 12. Nb1 {[%clk 0:02:37]}  Ba6 {[%clk 0:02:36]} 13. Qe3 {[%clk 0:02:37]}  Rc8 {[%clk 0:02:09]} 14. h5 {[%clk 0:02:34]}  c5 {[%clk 0:02:09]} 15. h6 {[%clk 0:02:30]}  g6 {[%clk 0:02:05]} 16. exd5 {[%clk 0:02:24]}  exd5 {[%clk 0:01:59]} 17. Be5 {[%clk 0:02:13]}  Nbd7 {[%clk 0:01:51]} 18. Qg5 {[%clk 0:01:59]}  Rc6 {[%clk 0:01:46]} 19. dxc5 {[%clk 0:01:41]}  Rxc5 {[%clk 0:01:33]} 20. Bxf6 {[%clk 0:01:18]}  d4 {[%clk 0:01:33]} 21. Qf4 {[%clk 0:00:59]}  Rxc2+ {[%clk 0:01:24]} 22. Kxc2 {[%clk 0:00:59]}  Qa4+ {[%clk 0:01:21]} 23. Kc1 {[%clk 0:00:58]}  Bxe2 {[%clk 0:01:10]} 24. Bxe2 {[%clk 0:00:25]}  Rc8+ {[%clk 0:01:09]} 25. Nc3 {[%clk 0:00:25]}  dxc3 {[%clk 0:01:00]} 26. Bxc3 {[%clk 0:00:20]}  Rxc3+ {[%clk 0:00:55]} 27. Kb1 {[%clk 0:00:13]}  Qc2+ {[%clk 0:00:49]} 28. Ka1 {[%clk 0:00:14]}  Ra3+ {[%clk 0:00:50]} 29. bxa3 {[%clk 0:00:14]}  Bc3# {[%clk 0:00:50]} 0-1


[Site "https://www.chess.com"]

[Event "Titled Tuesday Blitz November 01 Late 2022"]
[White "Romero Ruscalleda, Josep"]
[Black "Soto Vega, Jorge"]
[WhiteFideId "2231859"]
[BlackFideId "3800580"]
[WhiteElo "2286"]
[BlackElo "2263"]
[Result "0-1"]
[Round "04"]
[TimeControl "180+1"]
[Date "2022.11.02"]
[WhiteClock "0:00:43"]
[BlackClock "0:01:58"]

1. e4 {[%clk 0:03:00]}  d5 {[%clk 0:02:58]} 2. exd5 {[%clk 0:03:00]}  Qxd5 {[%clk 0:02:59]} 3. Nc3 {[%clk 0:03:00]}  Qa5 {[%clk 0:02:59]} 4. Bc4 {[%clk 0:03:00]}  Nf6 {[%clk 0:02:58]} 5. d3 {[%clk 0:03:00]}  c6 {[%clk 0:02:58]} 6. Nf3 {[%clk 0:02:58]}  Bg4 {[%clk 0:02:57]} 7. O-O {[%clk 0:02:56]}  Nbd7 {[%clk 0:02:56]} 8. Bd2 {[%clk 0:02:53]}  Qc7 {[%clk 0:02:52]} 9. h3 {[%clk 0:02:51]}  Bh5 {[%clk 0:02:51]} 10. Re1 {[%clk 0:02:51]}  e6 {[%clk 0:02:46]} 11. Ne4 {[%clk 0:02:34]}  Be7 {[%clk 0:02:42]} 12. Ng3 {[%clk 0:02:33]}  Bg6 {[%clk 0:02:41]} 13. Bg5 {[%clk 0:02:25]}  O-O {[%clk 0:02:38]} 14. Qd2 {[%clk 0:02:23]}  b5 {[%clk 0:02:36]} 15. Bb3 {[%clk 0:02:21]}  a5 {[%clk 0:02:35]} 16. a4 {[%clk 0:02:21]}  Nc5 {[%clk 0:02:33]} 17. Bf4 {[%clk 0:02:05]}  Nxb3 {[%clk 0:02:31]} 18. Bxc7 {[%clk 0:01:55]}  Nxd2 {[%clk 0:02:31]} 19. Nxd2 {[%clk 0:01:55]}  Nd5 {[%clk 0:02:30]} 20. Be5 {[%clk 0:01:44]}  f6 {[%clk 0:02:29]} 21. Bd4 {[%clk 0:01:41]}  e5 {[%clk 0:02:28]} 22. Bc3 {[%clk 0:01:34]}  b4 {[%clk 0:02:27]} 23. d4 {[%clk 0:01:26]}  bxc3 {[%clk 0:02:25]} 24. bxc3 {[%clk 0:01:26]}  exd4 {[%clk 0:02:22]} 25. c4 {[%clk 0:01:25]}  Bb4 {[%clk 0:02:20]} 26. cxd5 {[%clk 0:01:18]}  Bxd2 {[%clk 0:02:19]} 27. Re7 {[%clk 0:01:13]}  cxd5 {[%clk 0:02:17]} 28. f4 {[%clk 0:01:08]}  Bc3 {[%clk 0:02:16]} 29. Rf1 {[%clk 0:01:01]}  Bxc2 {[%clk 0:02:15]} 30. f5 {[%clk 0:00:49]}  Bxa4 {[%clk 0:02:07]} 31. Rb1 {[%clk 0:00:44]}  Rf7 {[%clk 0:02:06]} 32. Rbb7 {[%clk 0:00:43]}  Rxe7 {[%clk 0:02:04]} 33. Rxe7 {[%clk 0:00:43]}  d3 {[%clk 0:02:04]} 34. Nh5 {[%clk 0:00:43]}  d2 {[%clk 0:02:01]} 35. Rxg7+ {[%clk 0:00:43]}  Kh8 {[%clk 0:02:00]} 36. Nxf6 {[%clk 0:00:43]}  d1=Q+ {[%clk 0:01:58]} 37. Kh2 {[%clk 0:00:43]}  Bxf6 {[%clk 0:01:58]} 0-1


[Site "https://www.chess.com"]

[Event "Titled Tuesday Blitz November 01 Late 2022"]
[White "Rustemov, Alexander"]
[Black "Jaferian, Koosha"]
[WhiteFideId "4119002"]
[BlackFideId "12507440"]
[WhiteElo "2919"]
[BlackElo "2127"]
[Result "1-0"]
[Round "04"]
[TimeControl "180+1"]
[Date "2022.11.01"]
[WhiteClock "0:00:46"]
[BlackClock "0:00:08"]

1. d4 {[%clk 0:03:00]}  Nf6 {[%clk 0:03:00]} 2. c4 {[%clk 0:03:01]}  e6 {[%clk 0:03:00]} 3. Nf3 {[%clk 0:03:01]}  b6 {[%clk 0:03:00]} 4. g3 {[%clk 0:03:01]}  Ba6 {[%clk 0:03:01]} 5. b3 {[%clk 0:03:01]}  Bb4+ {[%clk 0:03:01]} 6. Bd2 {[%clk 0:03:01]}  Be7 {[%clk 0:03:02]} 7. Bg2 {[%clk 0:03:02]}  c6 {[%clk 0:03:02]} 8. O-O {[%clk 0:03:02]}  O-O {[%clk 0:03:03]} 9. Bc3 {[%clk 0:02:56]}  d5 {[%clk 0:03:03]} 10. Ne5 {[%clk 0:02:54]}  Nfd7 {[%clk 0:02:59]} 11. Nxd7 {[%clk 0:02:54]}  Nxd7 {[%clk 0:03:00]} 12. Nd2 {[%clk 0:02:54]}  Nf6 {[%clk 0:02:58]} 13. e4 {[%clk 0:02:53]}  Bb7 {[%clk 0:02:43]} 14. Re1 {[%clk 0:02:48]}  Qc7 {[%clk 0:02:26]} 15. Qc2 {[%clk 0:02:45]}  Rfd8 {[%clk 0:02:20]} 16. Rad1 {[%clk 0:02:43]}  c5 {[%clk 0:02:09]} 17. exd5 {[%clk 0:02:41]}  exd5 {[%clk 0:02:07]} 18. dxc5 {[%clk 0:02:35]}  d4 {[%clk 0:02:08]} 19. Bxb7 {[%clk 0:02:23]}  dxc3 {[%clk 0:01:46]} 20. Bxa8 {[%clk 0:02:22]}  cxd2 {[%clk 0:01:47]} 21. Rxd2 {[%clk 0:02:22]}  Rxa8 {[%clk 0:01:47]} 22. cxb6 {[%clk 0:02:20]}  axb6 {[%clk 0:01:48]} 23. Red1 {[%clk 0:02:03]}  h6 {[%clk 0:01:42]} 24. Qf5 {[%clk 0:02:01]}  Ra5 {[%clk 0:01:21]} 25. Qf3 {[%clk 0:01:59]}  Re5 {[%clk 0:01:11]} 26. Re2 {[%clk 0:01:55]}  Rxe2 {[%clk 0:01:08]} 27. Qxe2 {[%clk 0:01:55]}  Bc5 {[%clk 0:01:09]} 28. Qf3 {[%clk 0:01:54]}  Qe5 {[%clk 0:01:07]} 29. Rd8+ {[%clk 0:01:48]}  Kh7 {[%clk 0:01:08]} 30. Kg2 {[%clk 0:01:37]}  Qe4 {[%clk 0:01:00]} 31. Qxe4+ {[%clk 0:01:35]}  Nxe4 {[%clk 0:01:01]} 32. f3 {[%clk 0:01:32]}  Nc3 {[%clk 0:01:01]} 33. a4 {[%clk 0:01:25]}  Ne2 {[%clk 0:01:01]} 34. Rd2 {[%clk 0:01:18]}  Nc1 {[%clk 0:00:54]} 35. Rb2 {[%clk 0:01:15]}  Nd3 {[%clk 0:00:48]} 36. Rb1 {[%clk 0:01:15]}  Bb4 {[%clk 0:00:43]} 37. f4 {[%clk 0:01:12]}  Kg6 {[%clk 0:00:43]} 38. Kf3 {[%clk 0:01:12]}  Nc5 {[%clk 0:00:40]} 39. g4 {[%clk 0:01:03]}  Kf6 {[%clk 0:00:40]} 40. h4 {[%clk 0:01:02]}  g5 {[%clk 0:00:40]} 41. fxg5+ {[%clk 0:01:01]}  hxg5 {[%clk 0:00:41]} 42. h5 {[%clk 0:01:02]}  Nd3 {[%clk 0:00:36]} 43. Ke4 {[%clk 0:00:58]}  Nf2+ {[%clk 0:00:34]} 44. Kf3 {[%clk 0:00:57]}  Nd3 {[%clk 0:00:35]} 45. Rd1 {[%clk 0:00:57]}  Ne5+ {[%clk 0:00:35]} 46. Kg3 {[%clk 0:00:56]}  Bf8 {[%clk 0:00:12]} 47. Rd5 {[%clk 0:00:56]}  Ke6 {[%clk 0:00:10]} 48. Rb5 {[%clk 0:00:55]}  Bd6 {[%clk 0:00:09]} 49. Kh3 {[%clk 0:00:46]}  Bc5 {[%clk 0:00:09]} 50. a5 {[%clk 0:00:46]}  Nd7 {[%clk 0:00:08]} 51. a6 {[%clk 0:00:46]} 1-0


[Site "https://www.chess.com"]

[Event "Titled Tuesday Blitz November 01 Late 2022"]
[White "Sargsyan, Anna M."]
[Black "Jobava, Baadur"]
[WhiteFideId "13308130"]
[BlackFideId "13601520"]
[WhiteElo "2284"]
[BlackElo "2582"]
[Result "0-1"]
[Round "04"]
[TimeControl "180+1"]
[Date "2022.11.01"]
[WhiteClock "0:00:03"]
[BlackClock "0:01:13"]

1. d4 {[%clk 0:02:55]}  Nf6 {[%clk 0:02:59]} 2. c4 {[%clk 0:02:56]}  c5 {[%clk 0:02:59]} 3. d5 {[%clk 0:02:55]}  d6 {[%clk 0:02:59]} 4. Nc3 {[%clk 0:02:54]}  g6 {[%clk 0:03:00]} 5. e4 {[%clk 0:02:52]}  Bg7 {[%clk 0:03:01]} 6. f4 {[%clk 0:02:52]}  O-O {[%clk 0:03:02]} 7. Nf3 {[%clk 0:02:53]}  e6 {[%clk 0:03:02]} 8. dxe6 {[%clk 0:02:48]}  Bxe6 {[%clk 0:03:01]} 9. Bd3 {[%clk 0:02:49]}  Nc6 {[%clk 0:03:01]} 10. O-O {[%clk 0:02:49]}  Bg4 {[%clk 0:02:57]} 11. h3 {[%clk 0:02:47]}  Bxf3 {[%clk 0:02:58]} 12. Qxf3 {[%clk 0:02:48]}  Nd7 {[%clk 0:02:58]} 13. Nd5 {[%clk 0:02:42]}  a6 {[%clk 0:02:57]} 14. Kh1 {[%clk 0:02:41]}  Rb8 {[%clk 0:02:57]} 15. Rb1 {[%clk 0:02:34]}  b5 {[%clk 0:02:56]} 16. b3 {[%clk 0:02:34]}  Nb6 {[%clk 0:02:53]} 17. Be3 {[%clk 0:02:12]}  Nxd5 {[%clk 0:02:51]} 18. cxd5 {[%clk 0:02:02]}  Nb4 {[%clk 0:02:51]} 19. Be2 {[%clk 0:02:03]}  Nxa2 {[%clk 0:02:50]} 20. e5 {[%clk 0:02:02]}  Nc3 {[%clk 0:02:49]} 21. Rbc1 {[%clk 0:01:49]}  dxe5 {[%clk 0:02:40]} 22. Bxc5 {[%clk 0:00:50]}  e4 {[%clk 0:02:39]} 23. Qf2 {[%clk 0:00:50]}  Re8 {[%clk 0:02:36]} 24. d6 {[%clk 0:00:48]}  e3 {[%clk 0:02:10]} 25. Qf3 {[%clk 0:00:46]}  Ne4 {[%clk 0:02:10]} 26. Rfd1 {[%clk 0:00:36]}  Nf2+ {[%clk 0:02:10]} 27. Kh2 {[%clk 0:00:33]}  Nxd1 {[%clk 0:02:11]} 28. Rxd1 {[%clk 0:00:33]}  Qd7 {[%clk 0:02:09]} 29. b4 {[%clk 0:00:31]}  Rbc8 {[%clk 0:02:03]} 30. Rd5 {[%clk 0:00:24]}  f5 {[%clk 0:01:41]} 31. Qf1 {[%clk 0:00:19]}  Kh8 {[%clk 0:01:41]} 32. Qd1 {[%clk 0:00:20]}  Re4 {[%clk 0:01:39]} 33. g3 {[%clk 0:00:17]}  h5 {[%clk 0:01:39]} 34. Bf3 {[%clk 0:00:14]}  Ree8 {[%clk 0:01:36]} 35. Qd3 {[%clk 0:00:13]}  Bf6 {[%clk 0:01:25]} 36. h4 {[%clk 0:00:13]}  Kg7 {[%clk 0:01:25]} 37. Be2 {[%clk 0:00:10]}  Kh6 {[%clk 0:01:24]} 38. Bf3 {[%clk 0:00:08]}  Re6 {[%clk 0:01:21]} 39. Be2 {[%clk 0:00:08]}  Re4 {[%clk 0:01:20]} 40. Kg2 {[%clk 0:00:06]}  Rce8 {[%clk 0:01:19]} 41. Kh2 {[%clk 0:00:05]}  Rc4 {[%clk 0:01:18]} 42. Kg2 {[%clk 0:00:05]}  Rc3 {[%clk 0:01:18]} 43. Qd1 {[%clk 0:00:04]}  Re4 {[%clk 0:01:18]} 44. Qb1 {[%clk 0:00:03]}  Qc6 {[%clk 0:01:13]} 45. Qd1 {[%clk 0:00:03]}  Rd4 {[%clk 0:01:13]} 0-1


[Site "https://www.chess.com"]

[Event "Titled Tuesday Blitz November 01 Late 2022"]
[White "Shapiro, Daniel"]
[Black "Hoffmann, Asa"]
[WhiteFideId "2001780"]
[BlackFideId "2001470"]
[WhiteElo "2274"]
[BlackElo "2117"]
[Result "1-0"]
[Round "04"]
[TimeControl "180+1"]
[Date "2022.11.02"]
[WhiteClock "0:01:05"]
[BlackClock "0:01:02"]

1. Nf3 {[%clk 0:03:00]}  d6 {[%clk 0:02:55]} 2. b3 {[%clk 0:03:00]}  e5 {[%clk 0:02:55]} 3. c4 {[%clk 0:02:57]}  Nf6 {[%clk 0:02:53]} 4. Bb2 {[%clk 0:02:56]}  c5 {[%clk 0:02:52]} 5. d3 {[%clk 0:02:55]}  Nc6 {[%clk 0:02:52]} 6. g3 {[%clk 0:02:55]}  Be7 {[%clk 0:02:51]} 7. Bg2 {[%clk 0:02:56]}  O-O {[%clk 0:02:42]} 8. O-O {[%clk 0:02:56]}  h6 {[%clk 0:02:42]} 9. Nbd2 {[%clk 0:02:55]}  Be6 {[%clk 0:02:41]} 10. e3 {[%clk 0:02:54]}  Qd7 {[%clk 0:02:40]} 11. d4 {[%clk 0:02:52]}  cxd4 {[%clk 0:02:31]} 12. exd4 {[%clk 0:02:52]}  e4 {[%clk 0:02:31]} 13. d5 {[%clk 0:02:39]}  exf3 {[%clk 0:02:29]} 14. Bxf3 {[%clk 0:02:40]}  Bh3 {[%clk 0:02:20]} 15. dxc6 {[%clk 0:02:35]}  bxc6 {[%clk 0:02:20]} 16. Re1 {[%clk 0:02:33]}  Rfe8 {[%clk 0:02:15]} 17. Rxe7 {[%clk 0:02:16]}  Rxe7 {[%clk 0:02:07]} 18. Bxf6 {[%clk 0:02:16]}  gxf6 {[%clk 0:02:06]} 19. Ne4 {[%clk 0:02:16]}  Re6 {[%clk 0:01:57]} 20. Nc5 {[%clk 0:01:53]}  Qe7 {[%clk 0:01:27]} 21. Nxe6 {[%clk 0:01:52]}  fxe6 {[%clk 0:01:24]} 22. Bxc6 {[%clk 0:01:49]}  Rc8 {[%clk 0:01:23]} 23. Qh5 {[%clk 0:01:29]}  Bf5 {[%clk 0:01:20]} 24. Bf3 {[%clk 0:01:24]}  Kg7 {[%clk 0:01:20]} 25. Re1 {[%clk 0:01:20]}  Bg6 {[%clk 0:01:17]} 26. Qh3 {[%clk 0:01:16]}  Re8 {[%clk 0:01:09]} 27. Bc6 {[%clk 0:01:09]}  Rc8 {[%clk 0:01:06]} 28. Bd5 {[%clk 0:01:07]}  Bf5 {[%clk 0:01:02]} 29. Qxf5 {[%clk 0:01:05]} 1-0


[Site "https://www.chess.com"]

[Event "Titled Tuesday Blitz November 01 Late 2022"]
[White "Shipov, Sergei"]
[Black "Xiong, Jeffery"]
[WhiteFideId "4113624"]
[BlackFideId "2047640"]
[WhiteElo "2772"]
[BlackElo "2725"]
[Result "1-0"]
[Round "04"]
[TimeControl "180+1"]
[Date "2022.11.01"]
[WhiteClock "0:01:11"]
[BlackClock "0:00:19"]

1. d4 {[%clk 0:03:00]}  Nf6 {[%clk 0:02:52]} 2. c4 {[%clk 0:02:57]}  e6 {[%clk 0:02:52]} 3. Nc3 {[%clk 0:02:57]}  Bb4 {[%clk 0:02:50]} 4. Qc2 {[%clk 0:02:58]}  c5 {[%clk 0:02:43]} 5. dxc5 {[%clk 0:02:57]}  Bxc5 {[%clk 0:02:43]} 6. Nf3 {[%clk 0:02:57]}  Qb6 {[%clk 0:02:44]} 7. e3 {[%clk 0:02:54]}  Qc7 {[%clk 0:02:44]} 8. b3 {[%clk 0:02:47]}  b6 {[%clk 0:02:36]} 9. Bb2 {[%clk 0:02:48]}  Bb7 {[%clk 0:02:33]} 10. Be2 {[%clk 0:02:48]}  a6 {[%clk 0:02:32]} 11. O-O-O {[%clk 0:02:42]}  Nc6 {[%clk 0:02:30]} 12. a3 {[%clk 0:02:34]}  Ng4 {[%clk 0:02:23]} 13. Ne4 {[%clk 0:02:26]}  Nxf2 {[%clk 0:02:20]} 14. Bxg7 {[%clk 0:02:18]}  Bxe3+ {[%clk 0:02:17]} 15. Kb2 {[%clk 0:02:13]}  Nxd1+ {[%clk 0:02:16]} 16. Rxd1 {[%clk 0:02:12]}  O-O-O {[%clk 0:02:17]} 17. Bxh8 {[%clk 0:02:09]}  Rxh8 {[%clk 0:02:18]} 18. Qc3 {[%clk 0:02:09]}  Rg8 {[%clk 0:02:06]} 19. Nd6+ {[%clk 0:01:40]}  Kb8 {[%clk 0:02:06]} 20. Qxe3 {[%clk 0:01:39]}  Rxg2 {[%clk 0:02:07]} 21. Kb1 {[%clk 0:01:33]}  Ba8 {[%clk 0:01:41]} 22. Ne1 {[%clk 0:01:28]}  Rxh2 {[%clk 0:01:37]} 23. Ne8 {[%clk 0:01:23]}  Rxe2 {[%clk 0:01:19]} 24. Qxe2 {[%clk 0:01:24]}  Qg3 {[%clk 0:01:19]} 25. Qd3 {[%clk 0:01:16]}  Qxd3+ {[%clk 0:01:05]} 26. Nxd3 {[%clk 0:01:17]}  Nd4 {[%clk 0:00:43]} 27. Ne5 {[%clk 0:01:13]}  Nxb3 {[%clk 0:00:36]} 28. Rxd7 {[%clk 0:01:13]}  Be4+ {[%clk 0:00:18]} 29. Kb2 {[%clk 0:01:12]}  Nc5 {[%clk 0:00:19]} 30. Rxf7 {[%clk 0:01:11]} 1-0


[Site "https://www.chess.com"]

[Event "Titled Tuesday Blitz November 01 Late 2022"]
[White "Silva Lucena, Cristian"]
[Black "Velikanov, Alexander"]
[WhiteFideId "2232588"]
[BlackFideId "2039290"]
[WhiteElo "2223"]
[BlackElo "2259"]
[Result "0-1"]
[Round "04"]
[TimeControl "180+1"]
[Date "2022.11.02"]
[WhiteClock "0:00:06"]
[BlackClock "0:00:09"]

1. e4 {[%clk 0:03:00]}  c5 {[%clk 0:02:58]} 2. Nf3 {[%clk 0:02:59]}  Nc6 {[%clk 0:02:58]} 3. d4 {[%clk 0:02:57]}  cxd4 {[%clk 0:02:58]} 4. Nxd4 {[%clk 0:02:56]}  Qb6 {[%clk 0:02:58]} 5. Nb3 {[%clk 0:02:51]}  Nf6 {[%clk 0:02:58]} 6. Nc3 {[%clk 0:02:46]}  e6 {[%clk 0:02:51]} 7. Be3 {[%clk 0:02:46]}  Qc7 {[%clk 0:02:50]} 8. a3 {[%clk 0:02:44]}  a6 {[%clk 0:02:38]} 9. f4 {[%clk 0:02:42]}  h5 {[%clk 0:02:31]} 10. e5 {[%clk 0:02:38]}  Ng4 {[%clk 0:02:30]} 11. Bg1 {[%clk 0:02:31]}  d5 {[%clk 0:01:57]} 12. h3 {[%clk 0:02:11]}  Ngxe5 {[%clk 0:01:55]} 13. fxe5 {[%clk 0:02:09]}  Nxe5 {[%clk 0:01:56]} 14. Bh2 {[%clk 0:02:05]}  Bd6 {[%clk 0:01:55]} 15. Qd2 {[%clk 0:01:59]}  Nd3+ {[%clk 0:01:44]} 16. Bxd3 {[%clk 0:01:44]}  Bxh2 {[%clk 0:01:45]} 17. Ne2 {[%clk 0:01:41]}  Bd7 {[%clk 0:01:25]} 18. O-O-O {[%clk 0:01:33]}  Be5 {[%clk 0:01:25]} 19. Kb1 {[%clk 0:01:32]}  O-O-O {[%clk 0:01:22]} 20. Rhf1 {[%clk 0:01:13]}  f5 {[%clk 0:00:38]} 21. Qb4 {[%clk 0:01:03]}  h4 {[%clk 0:00:35]} 22. Qc5 {[%clk 0:00:56]}  Rhf8 {[%clk 0:00:23]} 23. Qxc7+ {[%clk 0:00:50]}  Kxc7 {[%clk 0:00:24]} 24. Nc5 {[%clk 0:00:49]}  Bc8 {[%clk 0:00:21]} 25. Rde1 {[%clk 0:00:48]}  Bd6 {[%clk 0:00:20]} 26. Nb3 {[%clk 0:00:41]}  e5 {[%clk 0:00:17]} 27. c3 {[%clk 0:00:36]}  Rf6 {[%clk 0:00:08]} 28. Ng1 {[%clk 0:00:27]}  Rdf8 {[%clk 0:00:08]} 29. Nf3 {[%clk 0:00:26]}  e4 {[%clk 0:00:08]} 30. Nfd4 {[%clk 0:00:23]}  exd3 {[%clk 0:00:07]} 31. Rd1 {[%clk 0:00:22]}  Rg6 {[%clk 0:00:04]} 32. Rf2 {[%clk 0:00:20]}  Rg3 {[%clk 0:00:05]} 33. Nf3 {[%clk 0:00:19]}  g5 {[%clk 0:00:04]} 34. Rxd3 {[%clk 0:00:18]}  f4 {[%clk 0:00:04]} 35. Rxd5 {[%clk 0:00:18]}  Bf5+ {[%clk 0:00:04]} 36. Ka1 {[%clk 0:00:16]}  Be6 {[%clk 0:00:05]} 37. Rfd2 {[%clk 0:00:07]}  Bxd5 {[%clk 0:00:05]} 38. Rxd5 {[%clk 0:00:07]}  g4 {[%clk 0:00:06]} 39. hxg4 {[%clk 0:00:07]}  h3 {[%clk 0:00:07]} 40. gxh3 {[%clk 0:00:04]}  Rxf3 {[%clk 0:00:07]} 41. Nd4 {[%clk 0:00:04]}  Rxh3 {[%clk 0:00:06]} 42. Ne6+ {[%clk 0:00:04]}  Kc6 {[%clk 0:00:06]} 43. Rxd6+ {[%clk 0:00:04]}  Kxd6 {[%clk 0:00:07]} 44. Nxf8 {[%clk 0:00:05]}  f3 {[%clk 0:00:07]} 45. g5 {[%clk 0:00:05]}  f2 {[%clk 0:00:08]} 46. g6 {[%clk 0:00:06]}  f1=Q+ {[%clk 0:00:09]} 0-1


[Site "https://www.chess.com"]